fUST/lending_fUST_20260104
["ID","MTS","AMOUNT","RATE_DAILY","PERIOD"]
[400426717,1767539449311,-151.0,0.00019178,2]
[400426718,1767539449320,-151.0,0.00019178,2]
[400426719,1767539449331,-151.0,0.00019178,2]
[400426720,1767539449345,-151.0,0.00019178,2]
[400426721,1767539449355,-151.0,0.00019178,2]
[400426722,1767539449364,-151.0,0.00019178,2]
[400426723,1767539449374,-151.0,0.00019178,2]
[400426724,1767539449385,-151.0,0.00019178,2]
[400426725,1767539449395,-151.0,0.00019178,2]
[400426726,1767539449405,-151.0,0.00019178,2]
[400426727,1767539449416,-209.519434,0.00019178,2]
[400426728,1767539449426,-151.0,0.00019178,2]
[400426729,1767539449436,-151.0,0.00019178,2]
[400426730,1767539449598,-151.0,0.00019178,2]
[400426731,1767539449608,-151.0,0.00019178,2]
[400426732,1767539449618,-151.0,0.00019178,2]
[400426733,1767539449628,-151.0,0.00019178,2]
[400426734,1767539449638,-151.0,0.00019178,2]
[400426735,1767539449648,-151.0,0.00019178,2]
[400426736,1767539449657,-151.0,0.00019178,2]
[400426737,1767539449667,-151.0,0.00019178,2]
[400426738,1767539449676,-151.0,0.00019178,2]
[400426739,1767539449685,-779.541268,0.00019178,2]
[400426740,1767539449695,-779.541268,0.00019178,2]
[400426741,1767539449705,-779.541268,0.00019178,2]
[400426742,1767539449714,-779.541268,0.00019178,2]
[400426743,1767539449724,-779.541268,0.00019178,2]
[400426744,1767539449733,-779.541268,0.00019178,2]
[400426745,1767539449742,-779.541268,0.00019178,2]
[400426746,1767539449752,-779.541268,0.00019178,2]
[400426747,1767539449761,-779.541268,0.00019178,2]
[400426748,1767539449770,-779.541268,0.00019178,2]
[400426749,1767539449779,-779.541268,0.00019178,2]
[400426750,1767539449789,-779.541268,0.00019178,2]
[400426751,1767539449812,-779.541268,0.00019178,2]
[400426752,1767539449824,-779.541268,0.00019178,2]
[400426753,1767539449836,-779.541268,0.00019178,2]
[400426754,1767539449847,-779.541268,0.00019178,2]
[400426755,1767539449858,-779.541268,0.00019178,2]
[400426756,1767539449868,-779.541268,0.00019178,2]
[400426757,1767539449879,-779.541268,0.00019178,2]
[400426758,1767539449890,-779.541275,0.00019178,2]
[400426759,1767539449901,-334.51939,0.00019178,2]
[400426760,1767539449912,-334.51939,0.00019178,2]
[400426761,1767539449923,-334.51939,0.00019178,2]
[400426762,1767539449934,-334.51939,0.00019178,2]
[400426763,1767539449944,-334.51939,0.00019178,2]
[400426764,1767539449955,-334.51939,0.00019178,2]
[400426765,1767539449965,-334.51939,0.00019178,2]
[400426766,1767539449976,-334.51939,0.00019178,2]
[400426767,1767539449986,-334.51939,0.00019178,2]
[400426768,1767539449997,-334.51939,0.00019178,2]
[400426769,1767539450008,-151.0,0.00019178,2]
[400426770,1767539450019,-334.51939,0.00019178,2]
[400426771,1767539450031,-334.51939,0.00019178,2]
[400426772,1767539450041,-334.51939,0.00019178,2]
[400426773,1767539450052,-334.51939,0.00019178,2]
[400426774,1767539450063,-334.51939,0.00019178,2]
[400426775,1767539450074,-334.51939,0.00019178,2]
[400426776,1767539450084,-334.51939,0.00019178,2]
[400426777,1767539450095,-334.51939,0.00019178,2]
[400426778,1767539450106,-334.51939,0.00019178,2]
[400426779,1767539450117,-334.519398,0.00019178,2]
[400426780,1767539450128,-1106.876099,0.00019178,2]
[400426781,1767539450140,-1106.876099,0.00019178,2]
[400426782,1767539450151,-1106.876099,0.00019178,2]
[400426783,1767539450161,-1106.876099,0.00019178,2]
[400426784,1767539450171,-1106.876099,0.00019178,2]
[400426785,1767539450182,-1106.876099,0.00019178,2]
[400426786,1767539450192,-1106.876099,0.00019178,2]
[400426787,1767539450202,-1106.876099,0.00019178,2]
[400426788,1767539450213,-1106.876099,0.00019178,2]
[400426789,1767539450223,-1106.876099,0.00019178,2]
[400426790,1767539450234,-1106.876099,0.00019178,2]
[400426791,1767539450244,-1106.876099,0.00019178,2]
[400426792,1767539450254,-1106.876099,0.00019178,2]
[400426793,1767539450265,-1106.876099,0.00019178,2]
[400426794,1767539450276,-1106.876099,0.00019178,2]
[400426795,1767539450286,-1106.876099,0.00019178,2]
[400426796,1767539450301,-1106.876099,0.00019178,2]
[400426797,1767539450311,-1106.876099,0.00019178,2]
[400426798,1767539450322,-1106.876099,0.00019178,2]
[400426799,1767539450332,-1106.876102,0.00019178,2]
[400426800,1767539450346,-279.05413,0.00019178,2]
[400426801,1767539450356,-279.05413,0.00019178,2]
[400426802,1767539450367,-279.05413,0.00019178,2]
[400426803,1767539450377,-279.05413,0.00019178,2]
[400426804,1767539450387,-279.05413,0.00019178,2]
[400426805,1767539450397,-279.05413,0.00019178,2]
[400426806,1767539450409,-279.05413,0.00019178,2]
[400426807,1767539450419,-279.05413,0.00019178,2]
[400426808,1767539450430,-279.05413,0.00019178,2]
[400426809,1767539450439,-279.05413,0.00019178,2]
[400426810,1767539450450,-279.05413,0.00019178,2]
[400426811,1767539450460,-279.05413,0.00019178,2]
[400426812,1767539450470,-279.05413,0.00019178,2]
[400426813,1767539450480,-279.05413,0.00019178,2]
[400426814,1767539450491,-279.05413,0.00019178,2]
[400426815,1767539450500,-279.05413,0.00019178,2]
[400426816,1767539450511,-279.05413,0.00019178,2]
[400426817,1767539450521,-279.05413,0.00019178,2]
[400426818,1767539450531,-279.05413,0.00019178,2]
[400426819,1767539450542,-279.054134,0.00019178,2]
[400426820,1767539450552,-151.0,0.00019178,2]
[400426821,1767539450562,-151.0,0.00019178,2]
[400426822,1767539450572,-151.0,0.00019178,2]
[400426823,1767539450582,-151.0,0.00019178,2]
[400426824,1767539450592,-151.0,0.00019178,2]
[400426825,1767539450602,-151.0,0.00019178,2]
[400426826,1767539450612,-151.0,0.00019178,2]
[400426827,1767539450622,-151.0,0.00019178,2]
[400426828,1767539450632,-151.0,0.00019178,2]
[400426829,1767539450642,-151.0,0.00019178,2]
[400426830,1767539450652,-480.04798,0.00019178,2]
[400426831,1767539450662,-151.0,0.00019178,2]
[400426832,1767539450672,-480.04798,0.00019178,2]
[400426833,1767539450681,-151.0,0.00019178,2]
[400426834,1767539450692,-480.04798,0.00019178,2]
[400426835,1767539450702,-151.0,0.00019178,2]
[400426836,1767539450712,-480.04798,0.00019178,2]
[400426837,1767539450722,-430.230833,0.00019178,2]
[400426838,1767539450732,-480.04798,0.00019178,2]
[400426839,1767539450742,-430.230833,0.00019178,2]
[400426840,1767539450752,-151.0,0.00019178,2]
[400426841,1767539450762,-480.04798,0.00019178,2]
[400426842,1767539450772,-430.230833,0.00019178,2]
[400426843,1767539450782,-151.0,0.00019178,2]
[400426844,1767539450792,-480.04798,0.00019178,2]
[400426845,1767539450803,-430.230833,0.00019178,2]
[400426846,1767539450817,-151.0,0.00019178,2]
[400426847,1767539450826,-480.04798,0.00019178,2]
[400426848,1767539450836,-430.230833,0.00019178,2]
[400426849,1767539450847,-151.0,0.00019178,2]
[400426850,1767539450857,-480.04798,0.00019178,2]
[400426851,1767539450868,-430.230833,0.00019178,2]
[400426852,1767539450878,-151.0,0.00019178,2]
[400426853,1767539450888,-480.04798,0.00019178,2]
[400426854,1767539450898,-430.230833,0.00019178,2]
[400426855,1767539450909,-275.092112,0.00019178,2]
[400426856,1767539450919,-480.04798,0.00019178,2]
[400426857,1767539450930,-430.230833,0.00019178,2]
[400426858,1767539450940,-480.04798,0.00019178,2]
[400426859,1767539450950,-430.230833,0.00019178,2]
[400426860,1767539450960,-480.04798,0.00019178,2]
[400426861,1767539450972,-430.230833,0.00019178,2]
[400426862,1767539450982,-480.04798,0.00019178,2]
[400426863,1767539450992,-430.230833,0.00019178,2]
[400426864,1767539451002,-480.04798,0.00019178,2]
[400426865,1767539451012,-430.230833,0.00019178,2]
[400426866,1767539451022,-480.04798,0.00019178,2]
[400426867,1767539451032,-430.230833,0.00019178,2]
[400426868,1767539451043,-480.04798,0.00019178,2]
[400426869,1767539451054,-430.230833,0.00019178,2]
[400426870,1767539451065,-480.04798,0.00019178,2]
[400426871,1767539451075,-430.230833,0.00019178,2]
[400426872,1767539451086,-480.04798,0.00019178,2]
[400426873,1767539451096,-430.230833,0.00019178,2]
[400426874,1767539451107,-480.047987,0.00019178,2]
[400426875,1767539451118,-430.230833,0.00019178,2]
[400426876,1767539451128,-430.230833,0.00019178,2]
[400426877,1767539451138,-430.230833,0.00019178,2]
[400426878,1767539451147,-430.230834,0.00019178,2]
[400426879,1767539451160,-151.0,0.00019178,2]
[400426880,1767539451170,-151.0,0.00019178,2]
[400426881,1767539451181,-151.0,0.00019178,2]
[400426882,1767539451191,-151.0,0.00019178,2]
[400426883,1767539451201,-151.0,0.00019178,2]
[400426884,1767539451211,-151.0,0.00019178,2]
[400426885,1767539451222,-151.0,0.00019178,2]
[400426886,1767539451232,-151.0,0.00019178,2]
[400426887,1767539451242,-151.0,0.00019178,2]
[400426888,1767539451252,-151.0,0.00019178,2]
[400426889,1767539451262,-151.0,0.00019178,2]
[400426890,1767539451273,-151.0,0.00019178,2]
[400426891,1767539451283,-151.0,0.00019178,2]
[400426892,1767539451293,-151.0,0.00019178,2]
[400426893,1767539451304,-151.0,0.00019178,2]
[400426894,1767539451314,-209.486994,0.00019178,2]
[400426895,1767539451324,-151.0,0.00019178,2]
[400426896,1767539451336,-151.0,0.00019178,2]
[400426897,1767539451348,-151.0,0.00019178,2]
[400426898,1767539451359,-151.0,0.00019178,2]
[400426899,1767539451369,-151.000012,0.00019178,2]
[400426900,1767539451379,-151.0,0.00019178,2]
[400426901,1767539451390,-151.0,0.00019178,2]
[400426902,1767539451400,-151.0,0.00019178,2]
[400426903,1767539451412,-151.0,0.00019178,2]
[400426904,1767539451421,-151.0,0.00019178,2]
[400426905,1767539451431,-151.0,0.00019178,2]
[400426906,1767539451441,-151.0,0.00019178,2]
[400426907,1767539451451,-151.0,0.00019178,2]
[400426908,1767539451460,-151.0,0.00019178,2]
[400426909,1767539451470,-151.0,0.00019178,2]
[400426910,1767539451480,-151.0,0.00019178,2]
[400426911,1767539451490,-151.0,0.00019178,2]
[400426912,1767539451500,-151.0,0.00019178,2]
[400426913,1767539451510,-151.0,0.00019178,2]
[400426914,1767539451519,-151.0,0.00019178,2]
[400426915,1767539451529,-151.0,0.00019178,2]
[400426916,1767539451538,-151.0,0.00019178,2]
[400426917,1767539451548,-151.0,0.00019178,2]
[400426918,1767539451558,-161.659793,0.00019178,2]
[400426919,1767539451567,-264.916921,0.00019178,2]
[400426920,1767539451577,-264.916921,0.00019178,2]
[400426921,1767539451587,-264.916921,0.00019178,2]
[400426922,1767539451597,-264.916921,0.00019178,2]
[400426923,1767539451606,-264.916921,0.00019178,2]
[400426924,1767539451616,-264.916921,0.00019178,2]
[400426925,1767539451626,-264.916921,0.00019178,2]
[400426926,1767539451636,-264.916921,0.00019178,2]
[400426927,1767539451645,-264.916921,0.00019178,2]
[400426928,1767539451655,-264.916921,0.00019178,2]
[400426929,1767539451665,-264.916921,0.00019178,2]
[400426930,1767539451674,-264.916921,0.00019178,2]
[400426931,1767539451684,-264.916921,0.00019178,2]
[400426932,1767539451694,-264.916921,0.00019178,2]
[400426933,1767539451703,-264.916921,0.00019178,2]
[400426934,1767539451712,-264.916921,0.00019178,2]
[400426935,1767539451722,-264.916921,0.00019178,2]
[400426936,1767539451731,-264.916921,0.00019178,2]
[400426937,1767539451741,-264.916921,0.00019178,2]
[400426938,1767539451750,-264.916923,0.00019178,2]
[400426939,1767539451761,-223.829416,0.00019178,2]
[400426940,1767539451771,-223.829416,0.00019178,2]
[400426941,1767539451780,-223.829416,0.00019178,2]
[400426942,1767539451790,-223.829416,0.00019178,2]
[400426943,1767539451799,-223.829416,0.00019178,2]
[400426944,1767539451809,-223.829416,0.00019178,2]
[400426945,1767539451818,-223.829416,0.00019178,2]
[400426946,1767539451828,-223.829416,0.00019178,2]
[400426947,1767539451838,-223.829416,0.00019178,2]
[400426948,1767539451848,-223.829416,0.00019178,2]
[400426949,1767539451859,-223.829416,0.00019178,2]
[400426950,1767539451868,-223.829416,0.00019178,2]
[400426951,1767539451878,-223.829416,0.00019178,2]
[400426952,1767539451888,-223.829416,0.00019178,2]
[400426953,1767539451898,-223.829416,0.00019178,2]
[400426954,1767539451907,-223.829416,0.00019178,2]
[400426955,1767539451917,-223.829416,0.00019178,2]
[400426956,1767539451927,-223.829416,0.00019178,2]
[400426957,1767539451938,-223.829416,0.00019178,2]
[400426958,1767539451947,-223.829411,0.00019178,2]
[400426959,1767539451957,-368.394148,0.00019178,2]
[400426960,1767539451967,-368.394148,0.00019178,2]
[400426961,1767539451976,-368.394148,0.00019178,2]
[400426962,1767539451986,-368.394148,0.00019178,2]
[400426963,1767539451996,-368.394148,0.00019178,2]
[400426964,1767539452006,-368.394148,0.00019178,2]
[400426965,1767539452016,-368.394148,0.00019178,2]
[400426966,1767539452025,-368.394148,0.00019178,2]
[400426967,1767539452035,-368.394148,0.00019178,2]
[400426968,1767539452045,-368.394148,0.00019178,2]
[400426969,1767539452054,-368.394148,0.00019178,2]
[400426970,1767539452064,-368.394148,0.00019178,2]
[400426971,1767539452074,-368.394148,0.00019178,2]
[400426972,1767539452083,-368.394148,0.00019178,2]
[400426973,1767539452094,-368.394148,0.00019178,2]
[400426974,1767539452104,-368.394148,0.00019178,2]
[400426975,1767539452114,-368.394148,0.00019178,2]
[400426976,1767539452124,-368.394148,0.00019178,2]
[400426977,1767539452135,-368.394148,0.00019178,2]
[400426978,1767539452144,-368.394139,0.00019178,2]
[400426979,1767539452154,-152.811245,0.00019178,2]
[400426980,1767539452164,-187.524039,0.00019178,2]
[400426981,1767539452173,-151.0,0.00019178,2]
[400426982,1767539452183,-151.0,0.00019178,2]
[400426983,1767539452193,-151.0,0.00019178,2]
[400426984,1767539452203,-151.0,0.00019178,2]
[400426985,1767539452213,-161.72515,0.00019178,2]
[400426986,1767539452224,-813.136537,0.00019178,2]
[400426987,1767539452233,-813.136537,0.00019178,2]
[400426988,1767539452243,-813.136537,0.00019178,2]
[400426989,1767539452253,-813.136537,0.00019178,2]
[400426990,1767539452263,-813.136537,0.00019178,2]
[400426991,1767539452272,-151.0,0.00019178,2]
[400426992,1767539452282,-813.136537,0.00019178,2]
[400426993,1767539452292,-151.0,0.00019178,2]
[400426994,1767539452301,-813.136537,0.00019178,2]
[400426995,1767539452311,-813.136537,0.00019178,2]
[400426996,1767539452320,-151.0,0.00019178,2]
[400426997,1767539452330,-813.136537,0.00019178,2]
[400426998,1767539452343,-151.0,0.00019178,2]
[400426999,1767539452353,-1241.17104,0.00019178,2]
[400427000,1767539452363,-813.136537,0.00019178,2]
[400427001,1767539452373,-151.0,0.00019178,2]
[400427002,1767539452385,-1241.17104,0.00019178,2]
[400427003,1767539452395,-813.136537,0.00019178,2]
[400427004,1767539452405,-151.0,0.00019178,2]
[400427005,1767539452419,-1241.17104,0.00019178,2]
[400427006,1767539452429,-813.136537,0.00019178,2]
[400427007,1767539452439,-151.0,0.00019178,2]
[400427008,1767539452448,-1241.17104,0.00019178,2]
[400427009,1767539452458,-813.136537,0.00019178,2]
[400427010,1767539452468,-151.0,0.00019178,2]
[400427011,1767539452477,-813.136537,0.00019178,2]
[400427012,1767539452488,-1241.17104,0.00019178,2]
[400427013,1767539452498,-194.528417,0.00019178,2]
[400427014,1767539452508,-813.136537,0.00019178,2]
[400427015,1767539452518,-1241.17104,0.00019178,2]
[400427016,1767539452528,-1241.17104,0.00019178,2]
[400427017,1767539452538,-813.136537,0.00019178,2]
[400427018,1767539452548,-1241.17104,0.00019178,2]
[400427019,1767539452557,-813.136537,0.00019178,2]
[400427020,1767539452567,-1241.17104,0.00019178,2]
[400427021,1767539452577,-813.136537,0.00019178,2]
[400427022,1767539452587,-1241.17104,0.00019178,2]
[400427023,1767539452596,-813.136537,0.00019178,2]
[400427024,1767539452757,-1241.17104,0.00019178,2]
[400427025,1767539452767,-900.0,0.00019178,2]
[400427026,1767539452777,-160.0,0.00019186,6]
[400427027,1767539452787,-257.86,0.000192,2]
[400427028,1767539452796,-271.79,0.000192,2]
[400427029,1767539452805,-3288.35,0.000192,2]
[400427030,1767539452815,-36465.78,0.000192,2]
[400427031,1767539452824,-167.7,0.000192,2]
[400427032,1767539452834,-194.0,0.00019229,2]
[400427033,1767539452844,-303.2061626,0.00019278,2]
[400427034,1767539452854,-300.0,0.00019315,2]
[400427035,1767539452864,-155.0,0.0001937,3]
[400427036,1767539452874,-194.0,0.00019376,2]
[400427037,1767539452884,-194.0,0.000194,2]
[400427038,1767539452893,-2000.0,0.00019404,7]
[400427039,1767539452903,-322.9,0.00019427,2]
[400427040,1767539452912,-156.04,0.00019445,2]
[400427041,1767539452922,-450.18747993,0.00019452,2]
[400427042,1767539452932,-178.9600823,0.0001946,30]
[400427043,1767539452942,-303.2061626,0.00019467,2]
[400427044,1767539452951,-160.0,0.00019574,7]
[400427045,1767539452961,-175.717707,0.00019635,2]
[400427046,1767539452972,-2000.0,0.00019656,3]
[400427047,1767539452982,-303.2061626,0.00019656,2]
[400427048,1767539452991,-13750.5771181,0.00019689,18]
[400427049,1767539453001,-71428.56,0.000197,3]
[400427050,1767539453011,-156.04,0.00019704,2]
[400427051,1767539453020,-1548.57506706,0.00019726,2]
[400427052,1767539453031,-454.80924391,0.00019845,4]
[400427053,1767539453041,-1000.0,0.00019862,2]
[400427054,1767539453050,-628.0,0.00019888,2]
[400427055,1767539453060,-1365.0,0.00019888,2]
[400427056,1767539453070,-2145.0,0.00019888,2]
[400427057,1767539453080,-416.0,0.00019888,2]
[400427058,1767539453089,-714.0,0.00019888,2]
[400427059,1767539453099,-178.0,0.00019888,2]
[400427060,1767539453109,-322.9,0.00019925,2]
[400427061,1767539453119,-160.0,0.00019962,8]
[400427062,1767539453129,-178.9600823,0.0002,30]
[400427063,1767539453138,-1670.0,0.0002,90]
[400427064,1767539453148,-3900.0,0.0002,2]
[400427065,1767539453157,-563.21667257,0.0002,2]
[400427066,1767539453168,-2285.86649662,0.0002,30]
[400427067,1767539453177,-617.22277842,0.0002,2]
[400427068,1767539453187,-14537.72367137,0.0002,2]
[400427069,1767539453196,-9999.999999,0.0002,7]
[400427070,1767539453206,-32957.79933473,0.0002,20]
[400427071,1767539453216,-371.11751909,0.0002,2]
[400427072,1767539453226,-96027.34539435,0.0002,2]
[400427073,1767539453235,-505.62779743,0.0002,2]
[400427074,1767539453247,-3771.86743473,0.0002,30]
[400427075,1767539453257,-610.38501589,0.0002,2]
[400427076,1767539453267,-23000.0,0.0002,2]
[400427077,1767539453277,-202.45861978,0.0002,2]
[400427078,1767539453287,-400.0,0.0002,30]
[400427079,1767539453296,-318.87142967,0.0002,30]
[400427080,1767539453307,-159.80005479,0.0002,2]
[400427081,1767539453316,-161.28477143,0.0002,30]
[400427082,1767539453326,-151.0,0.0002,2]
[400427083,1767539453337,-151.0,0.0002,2]
[400427084,1767539453349,-151.60459823,0.0002,2]
[400427085,1767539453358,-303.8391398,0.0002,2]
[400427086,1767539453368,-303.8391398,0.0002,2]
[400427087,1767539453379,-303.8391398,0.0002,2]
[400427088,1767539453389,-303.8391398,0.0002,2]
[400427089,1767539453399,-303.8391398,0.0002,2]
[400427090,1767539453409,-454.80924391,0.00020034,4]
[400427091,1767539453420,-440.34548428,0.0002013,2]
[400427092,1767539453430,-1051.987599,0.00020187,2]
[400427093,1767539453441,-2000.0,0.00020219,7]
[400427094,1767539453450,-162.0,0.00020222,2]
[400427095,1767539453461,-454.80924391,0.00020223,4]
[400427096,1767539453471,-600.0,0.00020273,7]
[400427097,1767539453482,-152.0,0.00020278,2]
[400427098,1767539453492,-152.0,0.00020278,2]
[400427099,1767539453502,-152.0,0.00020278,2]
[400427100,1767539453512,-153.76138875,0.00020278,2]
[400427101,1767539453522,-166.0,0.00020278,2]
[400427102,1767539453532,-166.0,0.00020278,2]
[400427103,1767539453542,-166.0,0.00020278,2]
[400427104,1767539453551,-200.08324581,0.00020278,2]
[400427105,1767539453561,-163.0,0.00020278,2]
[400427106,1767539453571,-163.0,0.00020278,2]
[400427107,1767539453581,-185.22374852,0.00020278,2]
[400427108,1767539453591,-160.0,0.00020351,9]
[400427109,1767539453603,-454.80924391,0.00020412,4]
[400427110,1767539453614,-839.09694427,0.00020419,2]
[400427111,1767539453624,-322.9,0.00020423,2]
[400427112,1767539453635,-171.4648377,0.00020466,30]
[400427113,1767539453646,-156.0,0.00020466,3]
[400427114,1767539453656,-178.9600823,0.00020539,30]
[400427115,1767539453666,-1811.906025,0.00020548,2]
[400427116,1767539453678,-454.80924391,0.00020601,4]
[400427117,1767539453688,-1387.44429035,0.0002061,2]
[400427118,1767539453698,-3288.35,0.000207,2]
[400427119,1767539453707,-36465.78,0.000207,2]
[400427120,1767539453717,-160.0,0.00020739,10]
[400427121,1767539453728,-501.40190888,0.00020771,5]
[400427122,1767539453739,-618.1668454,0.00020795,2]
[400427123,1767539453750,-163.60426972,0.00020812,5]
[400427124,1767539453759,-322.9,0.00020921,2]
[400427125,1767539453769,-12288.87722502,0.0002093,2]
[400427126,1767539453780,-22967.28191854,0.00021,2]
[400427127,1767539453790,-3000.0,0.00021,2]
[400427128,1767539453800,-250.0,0.00021,10]
[400427129,1767539453811,-3000.0,0.0002101,2]
[400427130,1767539453821,-3000.0,0.0002102,2]
[400427131,1767539453831,-3000.0,0.0002103,2]
[400427132,1767539453841,-2000.0,0.00021034,7]
[400427133,1767539453852,-3000.0,0.0002104,2]
[400427134,1767539453863,-600.0,0.0002104,2]
[400427135,1767539453874,-3000.0,0.0002105,2]
[400427136,1767539453885,-3000.0,0.0002106,2]
[400427137,1767539453895,-3000.0,0.0002107,2]
[400427138,1767539453905,-178.9600823,0.00021078,30]
[400427139,1767539453916,-3000.0,0.0002108,2]
[400427140,1767539453926,-3000.0,0.0002109,2]
[400427141,1767539453936,-3000.0,0.000211,2]
[400427142,1767539453946,-250.0,0.000211,10]
[400427143,1767539453956,-3000.0,0.0002111,2]
[400427144,1767539453966,-3000.0,0.0002112,2]
[400427145,1767539453976,-160.0,0.00021127,11]
[400427146,1767539453987,-3000.0,0.0002113,2]
[400427147,1767539453997,-3000.0,0.0002114,2]
[400427148,1767539454008,-3000.0,0.0002115,2]
[400427149,1767539454019,-3000.0,0.0002116,2]
[400427150,1767539454029,-15450.64925786,0.00021162,23]
[400427151,1767539454040,-3000.0,0.0002117,2]
[400427152,1767539454051,-3000.0,0.0002118,2]
[400427153,1767539454061,-3000.0,0.0002119,2]
[400427154,1767539454071,-508.15,0.000212,2]
[400427155,1767539454082,-508.15,0.000212,2]
[400427156,1767539454092,-508.15,0.000212,2]
[400427157,1767539454103,-508.15,0.000212,2]
[400427158,1767539454112,-582.676,0.000212,2]
[400427159,1767539454122,-582.676,0.000212,2]
[400427160,1767539454132,-582.67,0.000212,2]
[400427161,1767539454142,-3000.0,0.000212,2]
[400427162,1767539454151,-250.0,0.000212,10]
[400427163,1767539454161,-3000.0,0.0002121,2]
[400427164,1767539454171,-3000.0,0.0002122,2]
[400427165,1767539454181,-3000.0,0.0002123,2]
[400427166,1767539454192,-3000.0,0.0002124,2]
[400427167,1767539454201,-3000.0,0.0002125,2]
[400427168,1767539454211,-600.0,0.00021259,2]
[400427169,1767539454221,-3000.0,0.0002126,2]
[400427170,1767539454231,-3000.0,0.0002127,2]
[400427171,1767539454241,-3000.0,0.0002128,2]
[400427172,1767539454251,-3000.0,0.0002129,2]
[400427173,1767539454261,-3000.0,0.000213,2]
[400427174,1767539454272,-250.0,0.000213,10]
[400427175,1767539454281,-3000.0,0.0002131,2]
[400427176,1767539454291,-3000.0,0.0002132,2]
[400427177,1767539454300,-3000.0,0.0002133,2]
[400427178,1767539454311,-3000.0,0.0002134,2]
[400427179,1767539454321,-3000.0,0.0002135,2]
[400427180,1767539454331,-3000.0,0.0002136,2]
[400427181,1767539454345,-600.0,0.00021369,7]
[400427182,1767539454355,-3000.0,0.0002137,2]
[400427183,1767539454364,-3000.0,0.0002138,2]
[400427184,1767539454374,-3000.0,0.0002139,2]
[400427185,1767539454384,-475.0,0.0002139,7]
[400427186,1767539454394,-271.79,0.000214,2]
[400427187,1767539454404,-3000.0,0.000214,2]
[400427188,1767539454416,-257.007075,0.000214,10]
[400427189,1767539454427,-3000.0,0.0002141,2]
[400427190,1767539454436,-322.9,0.00021419,2]
[400427191,1767539454446,-3831.610653,0.0002142,2]
[400427192,1767539454455,-5235.3488527,0.00021445,2]
[400427193,1767539454465,-600.0,0.00021479,2]
[400427194,1767539454475,-928.02991693,0.00021479,2]
[400427195,1767539454485,-1038.46924337,0.000215,2]
[400427196,1767539454495,-12845.32818448,0.000215,2]
[400427197,1767539454504,-160.0,0.00021515,12]
[400427198,1767539454515,-157.0,0.00021562,5]
[400427199,1767539454524,-193.6002407,0.00021616,2]
[400427200,1767539454534,-193.6002407,0.00021616,2]
[400427201,1767539454544,-193.6002407,0.00021616,2]
[400427202,1767539454553,-193.6002407,0.00021616,2]
[400427203,1767539454562,-193.6002407,0.00021616,2]
[400427204,1767539454572,-193.6002407,0.00021616,2]
[400427205,1767539454582,-193.6002407,0.00021616,2]
[400427206,1767539454591,-193.6002407,0.00021616,2]
[400427207,1767539454601,-193.6002407,0.00021616,2]
[400427208,1767539454611,-178.9600823,0.00021617,30]
[400427209,1767539454621,-1230.288301,0.0002166,5]
[400427210,1767539454630,-480.08,0.00021672,30]
[400427211,1767539454639,-1000.0,0.0002168,5]
[400427212,1767539454649,-600.0,0.00021698,2]
[400427213,1767539454659,-1000.0,0.000217,5]
[400427214,1767539454669,-1000.0,0.0002172,5]
[400427215,1767539454679,-1000.0,0.0002174,5]
[400427216,1767539454689,-1000.0,0.0002176,5]